fUSD/lending_fUSD_20250720
["ID","MTS","AMOUNT","RATE_DAILY","PERIOD"]
[373554846,1753039479198,1283.68,0.00030136,120]
[373554847,1753039479397,1751.27,0.00030136,120]
[373554848,1753039479820,480.0,0.00030136,120]
[373554849,1753039481589,480.0,0.00030136,120]
[373554850,1753039482517,1499.25,0.00030136,120]
[373554851,1753039482887,683.48,0.00030136,120]
[373554852,1753039483004,480.0,0.00030136,120]
[373554853,1753039483414,806.83,0.00030136,120]
[373554854,1753039483801,480.0,0.00030136,120]
[373554855,1753039486284,921.59,0.00030136,120]
[373554856,1753039486418,480.0,0.00030136,120]
[373554857,1753039486460,1258.29,0.00030136,120]
[373554858,1753039487230,637.98,0.00030136,120]
[373554859,1753039487312,480.0,0.00030136,120]
[373554860,1753039487360,697.94,0.00030136,120]
[373554861,1753039487418,583.61,0.00030136,120]
[373554862,1753039487957,963.04,0.00030136,120]
[373554863,1753039488531,1050.46,0.00030136,120]
[373554864,1753039490474,3462.25,0.00030136,120]
[373554865,1753039491429,1604.01,0.00030136,120]
[373554866,1753039492690,480.0,0.00030136,120]
[373554867,1753039492786,377.98718083,0.00030136,120]
[373554868,1753039492879,480.0,0.00030136,120]
[373554869,1753039493172,1631.08,0.00030136,120]
[373554870,1753039493329,9033.5,0.00030136,120]
[373554871,1753039494198,420.0,0.00030136,120]
[373554872,1753039496316,2405.34,0.00030136,120]
[373554873,1753039496510,678.46,0.00030136,120]
[373554874,1753039496727,669.52,0.00030136,120]
[373554875,1753039497205,480.0,0.00030136,120]
[373554876,1753039497835,480.0,0.00030136,120]
[373554877,1753039498918,891.08,0.00030136,120]
[373554878,1753039499106,636.5,0.00030136,120]
[373554879,1753039499584,766.32,0.00030136,120]
[373554880,1753039499755,480.0,0.00030136,120]
[373554881,1753039499979,480.0,0.00030136,120]
[373554882,1753039501038,1058.55,0.00030136,120]
[373554883,1753039501283,6520.0,0.00030136,120]
[373554884,1753039502351,480.0,0.00030136,120]
[373554885,1753039502682,7572.59,0.00030136,120]
[373554886,1753039503830,1245.6,0.00030136,120]
[373554887,1753039505963,22350.73,0.00030136,120]
[373554888,1753039506141,1165.34,0.00030136,120]
[373554889,1753039507414,2551.21,0.00030136,120]
[373554890,1753039510617,480.0,0.00030136,120]
[373554891,1753039511509,732.03,0.00030136,120]
[373554892,1753039513167,718.11,0.00030136,120]
[373554893,1753039513211,4059.75,0.00030136,120]
[373554894,1753039513674,480.0,0.00030136,120]
[373554895,1753039513827,1021.61,0.00030136,120]
[373554896,1753039513918,480.0,0.00030136,120]
[373554897,1753039514486,480.0,0.00030136,120]
[373554898,1753039514745,480.0,0.00030136,120]
[373554899,1753039514911,480.0,0.00030136,120]
[373554900,1753039515941,480.0,0.00030136,120]
[373554901,1753039516149,734.79,0.00030136,120]
[373554902,1753039516224,797.73,0.00030136,120]
[373554903,1753039516386,1516.91,0.00030136,120]
[373554904,1753039517684,1242.97,0.00030136,120]
[373554905,1753039519340,8657.11,0.00030136,120]
[373554906,1753039519898,3317.99,0.00030136,120]
[373554907,1753039520843,1442.44,0.00030136,120]
[373554908,1753039521087,1784.32,0.00030136,120]
[373554909,1753039521919,951.32,0.00030136,120]
[373554910,1753039522058,420.0,0.00030136,120]
[373554911,1753039524229,480.0,0.00030136,120]
[373554912,1753039524359,333.98176221,0.00030136,120]
[373554913,1753039524462,968.02,0.00030136,120]
[373554914,1753039525727,1258.08,0.00030136,120]
[373554915,1753039527675,480.0,0.00030136,120]
[373554916,1753039527880,684.51,0.00030136,120]
[373554917,1753039528281,6648.91,0.00030136,120]
[373554918,1753039528827,480.0,0.00030136,120]
[373554919,1753039530174,480.0,0.00030136,120]
[373554920,1753039530475,1141.95,0.00030136,120]
[373554921,1753039530516,722.73,0.00030136,120]
[373554922,1753039530978,376.24127187,0.00030136,120]
[373554923,1753039531677,1890.64,0.00030136,120]
[373554924,1753039533771,480.0,0.00030136,120]
[373554925,1753039533860,2556.37,0.00030136,120]
[373554926,1753039533916,1619.97,0.00030136,120]
[373554927,1753039534483,2997.39,0.00030136,120]
[373554928,1753039534568,1645.76,0.00030136,120]
[373554929,1753039535104,480.0,0.00030136,120]
[373554930,1753039535437,6131.1,0.00030136,120]
[373554931,1753039535910,1395.23,0.00030136,120]
[373554932,1753039537801,389.60549834,0.00030136,120]
[373554933,1753039539166,1471.31,0.00030136,120]
[373554934,1753039540390,480.0,0.00030136,120]
[373554935,1753039540749,168.82094183,0.00030136,120]
[373554936,1753039541660,2184.43,0.00030136,120]
[373554937,1753039542294,1453.71,0.00030136,120]
[373554938,1753039543064,539.05,0.00030136,120]
[373554939,1753039543840,1197.33,0.00030136,120]
[373554940,1753039545154,480.0,0.00030136,120]
[373554941,1753039545737,6012.93,0.00030136,120]
[373554942,1753039546476,2132.27,0.00030136,120]
[373554943,1753039546729,480.0,0.00030136,120]
[373554944,1753039548379,888.42,0.00030136,120]
[373554945,1753039548647,432.51532873,0.00030136,120]
[373554946,1753039548952,2715.66,0.00030136,120]
[373554947,1753039549083,1269.1,0.00030136,120]
[373554948,1753039549347,250.69395837,0.00030136,120]
[373554949,1753039550343,480.0,0.00030136,120]
[373554950,1753039551494,480.0,0.00030136,120]
[373554951,1753039552185,2675.65,0.00030136,120]
[373554952,1753039553735,1139.49,0.00030136,120]
[373554953,1753039553869,520.25,0.00030136,120]
[373554954,1753039554154,883.19,0.00030136,120]
[373554955,1753039554829,480.0,0.00030136,120]
[373554956,1753039556066,684.21,0.00030136,120]
[373554957,1753039556266,480.0,0.00030136,120]
[373554958,1753039557326,809.17,0.00030136,120]
[373554959,1753039558036,1584.66,0.00030136,120]
[373554961,1753039560694,2444.91,0.00030136,120]
[373554962,1753039561121,580.13,0.00030136,120]
[373554963,1753039562343,1812.49,0.00030136,120]
[373554964,1753039562762,5875.64,0.00030136,120]
[373554965,1753039562893,480.0,0.00030136,120]
[373554966,1753039563243,2334.67,0.00030136,120]
[373554967,1753039565082,2826.35,0.00030136,120]
[373554968,1753039565122,2717.0,0.00030136,120]
[373554969,1753039567166,518.33,0.00030136,120]
[373554970,1753039567809,919.75,0.00030136,120]
[373554971,1753039567930,1577.25,0.00030136,120]
[373554972,1753039568652,480.0,0.00030136,120]
[373554973,1753039569088,6979.5,0.00030136,120]
[373554974,1753039569579,460.0,0.00030136,120]
[373554975,1753039569780,1561.36,0.00030136,120]
[373554976,1753039571462,444.01676448,0.00030136,120]
[373554977,1753039571561,480.0,0.00030136,120]
[373554978,1753039572367,4183.65,0.00030136,120]
[373554979,1753039573487,460.0,0.00030136,120]
[373554980,1753039573747,3472.19,0.00030136,120]
[373554981,1753039574093,7541.11,0.00030136,120]
[373554982,1753039575442,2933.28,0.00030136,120]
[373554983,1753039576253,1233.1,0.00030136,120]
[373554984,1753039576553,480.0,0.00030136,120]
[373554985,1753039577542,480.0,0.00030136,120]
[373554986,1753039577884,1503.31,0.00030136,120]
[373554987,1753039578102,1482.76,0.00030136,120]
[373554988,1753039578458,485.47,0.00030136,120]
[373554989,1753039579469,1488.36,0.00030136,120]
[373554990,1753039580870,485.5,0.00030136,120]
[373554991,1753039581436,592.06,0.00030136,120]
[373554992,1753039582052,524.85,0.00030136,120]
[373554993,1753039582816,1188.67,0.00030136,120]
[373554994,1753039582854,2658.88,0.00030136,120]
[373554995,1753039583418,480.0,0.00030136,120]
[373554996,1753039583894,480.0,0.00030136,120]
[373554997,1753039586126,667.93,0.00030136,120]
[373554998,1753039586448,592.31,0.00030136,120]
[373554999,1753039587898,2237.39,0.00030136,120]
[373555000,1753039588745,720.68,0.00030136,120]
[373555001,1753039590655,480.0,0.00030136,120]
[373555002,1753039591497,480.0,0.00030136,120]
[373555003,1753039591683,4819.36,0.00030136,120]
[373555004,1753039594023,4058.62,0.00030136,120]
[373555005,1753039594363,480.0,0.00030136,120]
[373555006,1753039595132,657.2,0.00030136,120]
[373555007,1753039595409,480.0,0.00030136,120]
[373555008,1753039595538,477.56190979,0.00030136,120]
[373555009,1753039596269,1943.16,0.00030136,120]
[373555010,1753039596441,480.0,0.00030136,120]
[373555011,1753039597376,480.0,0.00030136,120]
[373555012,1753039597650,465.56931202,0.00030136,120]
[373555013,1753039598190,1693.43,0.00030136,120]
[373555014,1753039598404,1436.78,0.00030136,120]
[373555015,1753039599397,2043.42,0.00030136,120]
[373555016,1753039599512,522.1767268,0.00030136,120]
[373555017,1753039599607,480.0,0.00030136,120]
[373555018,1753039600220,480.0,0.00030136,120]
[373555019,1753039600460,2083.05,0.00030136,120]
[373555020,1753039601736,480.0,0.00030136,120]
[373555021,1753039602127,480.0,0.00030136,120]
[373555022,1753039603360,480.0,0.00030136,120]
[373555023,1753039604674,2829.21,0.00030136,120]
[373555024,1753039604778,3720.4,0.00030136,120]
[373555025,1753039605040,1534.71,0.00030136,120]
[373555026,1753039605118,1966.27,0.00030136,120]
[373555027,1753039605414,480.0,0.00030136,120]
[373555028,1753039606206,480.0,0.00030136,120]
[373555029,1753039606932,480.0,0.00030136,120]
[373555030,1753039606977,480.0,0.00030136,120]
[373555031,1753039607686,752.56,0.00030136,120]
[373555032,1753039609274,424.81462555,0.00030136,120]
[373555033,1753039611073,480.0,0.00030136,120]
[373555034,1753039612365,440.0,0.00030136,120]
[373555035,1753039612818,1545.22,0.00030136,120]
[373555036,1753039613023,734.66,0.00030136,120]
[373555037,1753039614464,502.383971,0.00030136,120]
[373555038,1753039614517,2194.93,0.00030136,120]
[373555039,1753039615621,1076.06,0.00030136,120]
[373555040,1753039615905,480.0,0.00030136,120]
[373555041,1753039616598,2253.83,0.00030136,120]
[373555042,1753039617077,305.42399071,0.00030136,120]
[373555043,1753039617194,480.0,0.00030136,120]
[373555044,1753039617313,1419.09,0.00030136,120]
[373555045,1753039617544,1924.84,0.00030136,120]
[373555046,1753039618253,1999.31,0.00030136,120]
[373555047,1753039618342,1190.92,0.00030136,120]
[373555048,1753039619090,500.81,0.00030136,120]
[373555049,1753039619696,368.48162828,0.00030136,120]
[373555050,1753039620062,21419.45,0.00030136,120]
[373555051,1753039620401,442.84087954,0.00030136,120]
[373555052,1753039620532,2154.47,0.00030136,120]
[373555053,1753039623376,600.85,0.00030136,120]
[373555054,1753039624926,480.0,0.00030136,120]
[373555055,1753039625046,480.0,0.00030136,120]
[373555056,1753039625105,2481.61,0.00030136,120]
[373555057,1753039626511,480.0,0.00030136,120]
[373555058,1753039627345,2470.23,0.00030136,120]
[373555059,1753039627616,781.99,0.00030136,120]
[373555060,1753039627666,3366.12,0.00030136,120]
[373555061,1753039629137,480.0,0.00030136,120]
[373555062,1753039629200,881.43,0.00030136,120]
[373555063,1753039629433,1025.51,0.00030136,120]
[373555064,1753039630162,480.0,0.00030136,120]
[373555065,1753039632089,480.0,0.00030136,120]
[373555066,1753039632204,407.33306187,0.00030136,120]
[373555067,1753039632726,345.58967455,0.00030136,120]
[373555068,1753039633943,924.85,0.00030136,120]
[373555069,1753039633996,616.83491701,0.00030136,120]
[373555070,1753039634237,480.0,0.00030136,120]
[373555071,1753039634539,480.0,0.00030136,120]
[373555072,1753039635435,29485.45416612,0.00030136,120]
[373555080,1753039766125,-728.19518246,0.00016255,2]
[373555081,1753039766146,-1000.0,0.00016263,2]
[373555082,1753039766167,-300.0,0.0001627,2]
[373555083,1753039766187,-106.21541754,0.0001627,2]
[373555084,1753039768130,-143.78458246,0.0001627,2]
[373555085,1753039768152,-509.0,0.00016286,2]
[373555086,1753039768174,-1000.0,0.00016479,2]
[373555087,1753039768194,-300.0,0.00016686,2]
[373555088,1753039768214,-152.77348165,0.000169,2]
[373555089,1753039768234,-8635.36397329,0.0001699,2]
[373555090,1753039768254,-931.0,0.00016999,2]
[373555091,1753039768274,-74082.82894665,0.00017,2]
[373555098,1753039832071,-300.0,0.00016999,2]
[373555099,1753039832081,-1200.0,0.00016999,2]
[373555100,1753039832090,-3543.10722756,0.00017,2]
[373555101,1753039832101,-3600.58847032,0.00017,2]
[373555102,1753039832181,-631.35903207,0.00017,2]
[373555103,1753039832289,-612.5,0.00017,2]
[373555104,1753039832301,-402.13200002,0.00017,2]
[373555105,1753039832312,-1032.8654,0.00017,2]
[373555106,1753039832323,-402.77999951,0.00017,2]
[373555107,1753039832395,-1172.0,0.00017,2]
[373555614,1753039838038,-2659.01020656,0.00017,2]
[373555615,1753039838091,-54389.31798707,0.00017,2]
[373555616,1753039838148,-479.84,0.00017,2]
[373555617,1753039838206,-1979.40219047,0.00017,2]
[373555618,1753039838218,-999.10551603,0.00017,2]
[373555619,1753039838260,-13502.29935771,0.00017,2]
[373555620,1753039838271,-308.62457396,0.00017,2]
[373555621,1753039838283,-499.0,0.00017,2]
[373555622,1753039838294,-621.2499997,0.00017,2]
[373555623,1753039838315,-459.61239999,0.00017,2]
[373555624,1753039838327,-260.58,0.00017,2]
[373555753,1753039840209,-87378.60899313,0.00017,2]
[373555755,1753039840218,-848.24726555,0.00017186,2]
[373555757,1753039840228,-183.682716,0.000175,2]
[373555759,1753039840237,-322.0,0.000175,2]
[373555761,1753039840247,-1000.0,0.00017624,2]
[373555763,1753039840257,-257.88,0.0001772,2]
[373555765,1753039840267,-666.0,0.0001773,2]
[373555767,1753039840276,-151.0,0.00017749,2]
[373555769,1753039840285,-600.0,0.00017803,2]
[373555772,1753039840295,-249.28,0.00017812,2]
[373555773,1753039840305,-300.0,0.00017881,2]
[373555775,1753039840315,-250.0,0.00017881,2]
[373555777,1753039840324,-1000.0,0.00017881,2]
[373555780,1753039840334,-276.24,0.00018004,2]
[373555782,1753039840343,-848.24726551,0.00018021,2]
[373555784,1753039840354,-356.12,0.00018023,2]
[373555786,1753039840363,-421.5,0.00018063,2]
[373555788,1753039840373,-151.0,0.00018068,2]
[373555790,1753039840382,-171.59,0.00018069,2]
[373555792,1753039840391,-25385.23,0.00018079,2]
[373555794,1753039840400,-1511.2425824,0.00018126,2]
[373555796,1753039840410,-23098.79,0.00018127,2]
[373555798,1753039840419,-559.44611211,0.00018169,2]
[373555800,1753039840428,-7142.856,0.00018218,2]
[373555802,1753039840438,-266.45576968,0.00018218,2]
[373555804,1753039840447,-401.19111454,0.00018218,2]
[373555806,1753039840457,-160.0,0.00018218,2]
[373555808,1753039840466,-231.28369723,0.00018218,2]
[373555810,1753039840475,-252.80524143,0.00018218,2]
[373555812,1753039840485,-382.24,0.00018278,2]
[373555814,1753039840495,-156.83,0.00018329,2]
[373555816,1753039840504,-300.0,0.00018378,2]
[373555818,1753039840514,-150.0,0.00018378,2]
[373555820,1753039840523,-300.0,0.00018378,2]
[373555822,1753039840532,-420.0,0.00018567,2]
[373555824,1753039840542,-167.96,0.00018621,2]
[373555826,1753039840551,-1680.0,0.00018659,2]
[373555828,1753039840560,-300.0,0.00018699,2]
[373555830,1753039840570,-150.0,0.00018702,2]
[373555832,1753039840580,-7407.141672,0.00018766,2]
[373555834,1753039840589,-315.0,0.0001878,2]
[373555836,1753039840599,-174.356807,0.00018794,2]
[373555838,1753039840609,-1405.98762261,0.000188,2]
[373555840,1753039840619,-848.24726551,0.00018856,2]
[373555842,1753039840628,-150.0,0.00018888,2]
[373555843,1753039840637,-150.0,0.00018888,2]
[373555845,1753039840647,-200.0,0.00018889,2]
[373555847,1753039840658,-839.92113301,0.00018894,2]
[373555849,1753039840667,-6759.81307898,0.00018894,2]
[373555851,1753039840677,-300.0,0.000189,6]
[373555853,1753039840686,-496.30018582,0.000189,2]
[373555855,1753039840695,-496.30018568,0.000189,2]
[373555857,1753039840707,-496.30018568,0.000189,2]
[373555859,1753039840717,-496.30018568,0.000189,2]
[373555861,1753039840726,-496.30018568,0.000189,2]
[373555863,1753039840735,-496.30018568,0.000189,2]
[373555865,1753039840745,-496.30018568,0.000189,2]
[373555867,1753039840755,-496.30018568,0.000189,2]
[373555869,1753039840764,-496.30018568,0.000189,2]
[373555871,1753039840774,-496.30018568,0.000189,2]
[373555873,1753039840784,-313.63,0.000189,2]
[373555875,1753039840794,-6759.81307898,0.000189,2]
[373555877,1753039840803,-839.92113301,0.00018935,2]
[373555879,1753039840813,-210.86573235,0.00018936,2]
[373555881,1753039840822,-476.8747822,0.00018936,2]
[373555883,1753039840831,-839.31074571,0.00018936,2]
[373555885,1753039840841,-160.0,0.00018936,2]
[373555887,1753039840850,-839.92113301,0.0001895,2]
[373555924,1753039841198,-421.5,0.00018966,2]
[373555928,1753039841226,-6759.81307898,0.00018967,2]
[373555930,1753039841237,-763.66572,0.0001899,2]
[373555932,1753039841247,-156.83,0.00019016,2]
[373555934,1753039841256,-168.0,0.00019064,2]
[373555936,1753039841266,-704.87324487,0.00019067,2]
[373555938,1753039841275,-5460.3236,0.00019067,2]
[373555940,1753039841285,-185.42581838,0.00019073,2]
[373555942,1753039841295,-763.66573,0.0001909,2]
[373555945,1753039841306,-496.30018568,0.00019093,2]
[373555947,1753039841315,-562.027,0.00019115,2]
[373555949,1753039841324,-744.28372224,0.00019126,2]
[373555951,1753039841333,-58774.1083763,0.00019167,2]
[373555953,1753039841343,-1228.0807875,0.00019167,2]
[373555954,1753039841353,-235.2697508,0.00019167,2]
[373555955,1753039841363,-500.0,0.00019173,2]
[373555956,1753039841372,-251.67911162,0.00019177,2]
[373555958,1753039841381,-1000.0,0.00019177,2]
[373555960,1753039841391,-150.0,0.00019178,2]
[373555962,1753039841400,-642.13793181,0.00019178,2]
[373555964,1753039841410,-639.25017621,0.00019178,2]
[373555965,1753039841420,-945.43380069,0.00019178,2]
[373555968,1753039841430,-150.0,0.00019178,2]
[373555970,1753039841440,-150.0,0.00019178,2]
[373555972,1753039841452,-150.0,0.00019178,2]
[373555974,1753039841461,-411.97635147,0.00019178,2]
[373555976,1753039841471,-167.35259782,0.00019178,2]
[373555978,1753039841481,-500.0,0.00019178,2]
[373555980,1753039841490,-210.38832361,0.00019178,2]
[373555982,1753039841500,-500.0,0.00019178,2]
[373555984,1753039841510,-500.0,0.00019178,2]
[373555986,1753039841519,-500.0,0.00019178,2]
[373555988,1753039841529,-500.0,0.00019178,2]
[373555990,1753039841538,-500.0,0.00019178,2]
[373555992,1753039841548,-500.0,0.00019178,2]
[373555994,1753039841560,-500.0,0.00019178,2]
[373555997,1753039841569,-500.0,0.00019178,2]
[373555999,1753039841579,-500.0,0.00019178,2]
[373556001,1753039841588,-156.21111908,0.00019178,2]
[373556003,1753039841598,-500.0,0.00019178,2]
[373556005,1753039841607,-151.0,0.00019178,2]
[373556007,1753039841617,-117404.94910486,0.00019178,2]
[373556009,1753039841630,-395.395,0.00019178,2]
[373556015,1753039841672,-511.76258274,0.00019178,2]
[373556018,1753039841694,-1175.2,0.00019178,2]
[373556020,1753039841706,-1077.0068302,0.00019178,2]
[373556024,1753039841732,-920.64,0.00019178,2]
[373556026,1753039841744,-2480.74477818,0.00019178,2]
[373556030,1753039841766,-3780.00008,0.00019178,2]
[373556033,1753039841790,-7479.67797847,0.00019178,2]
[373556036,1753039841803,-282.14273125,0.00019178,2]
[373556038,1753039841815,-1083.05570686,0.00019178,2]
[373556153,1753039843175,-178.8794353,0.00019167,2]
[373556154,1753039843186,-326.14738017,0.00019178,2]
[373556155,1753039843595,-2907.97339485,0.00019178,2]
[373556156,1753039843610,-614.48940354,0.00019178,2]
[373556193,1753039846161,-2988.10342327,0.00019178,2]
[373556194,1753039846211,-891.55922038,0.00019178,2]
[373556195,1753039846223,-9010.1457831,0.00019178,2]
[373556196,1753039846232,-243.98,0.00019178,2]
[373556197,1753039846241,-14782.13655684,0.00019178,2]
[373556198,1753039846252,-4224.6937507,0.00019178,2]
[373556199,1753039846320,-846.58351749,0.00019178,2]
[373556200,1753039846430,-998.89307642,0.00019178,2]
[373556201,1753039846487,-1129.632,0.00019178,2]
[373556202,1753039846499,-1666.23109855,0.00019178,2]
[373556203,1753039846508,-2631.08489635,0.00019178,2]
[373556204,1753039846613,-1194.64510365,0.00019178,2]
[373556205,1753039846623,-25909.53095758,0.00019178,2]
[373556206,1753039846634,-156.90910245,0.0001918,2]
[373556207,1753039846645,-1493.917,0.00019186,2]
[373556208,1753039846655,-1687.0,0.00019193,2]
[373556209,1753039846664,-562.0,0.00019193,2]
[373556210,1753039846673,-1287.0,0.00019193,2]
[373556211,1753039846684,-733.025,0.00019193,2]
[373556212,1753039846694,-3352.0,0.00019193,2]
[373556213,1753039846704,-952.0,0.00019193,2]
[373556214,1753039846714,-11170.525,0.00019193,2]
[373556215,1753039846723,-862.0,0.00019193,2]
[373556216,1753039846734,-313.14,0.000192,2]
[373556217,1753039846744,-202.0,0.00019204,2]
[373556218,1753039846754,-150.0,0.00019204,2]
[373556219,1753039846764,-198.301,0.00019204,2]
[373556220,1753039846773,-250.0,0.00019204,2]
[373556221,1753039846787,-220.635,0.00019204,2]
[373556222,1753039846796,-294.008,0.00019204,2]
[373556223,1753039846805,-150.0,0.00019204,2]
[373556224,1753039846816,-262.61475996,0.0001921,2]
[373556225,1753039846826,-168.0,0.00019216,2]
[373556226,1753039846836,-1042.70373505,0.00019241,2]
[373556227,1753039846846,-454.15236807,0.00019241,2]
[373556228,1753039846855,-296.08945683,0.00019242,2]
[373556229,1753039846864,-151.0,0.0001926,2]
[373556230,1753039846873,-151.0,0.0001926,2]
[373556231,1753039846883,-157.467384,0.0001926,2]
[373556232,1753039846892,-250.317953,0.0001926,2]
[373556233,1753039846902,-1195.0,0.0001926,2]
[373556234,1753039846914,-544.81106507,0.0001926,2]
[373556235,1753039846924,-35888.20711434,0.0001926,2]
[373556238,1753039972582,4019.97402455,0.00023,30]
[373556245,1753040218274,192.24,0.0002494,120]
[373556247,1753040309049,508.0,0.00015286,2]
[373556250,1753040510127,262.01,0.00013699,2]
[373556255,1753040747127,-300.0,0.00017117,2]
[373556256,1753040747150,-1000.0,0.00017308,2]
[373556257,1753040747171,-275.35185487,0.0001748,2]
[373556258,1753040748389,-233.64814513,0.0001748,2]
[373556259,1753040748412,-509.00003,0.0001748,2]
[373556260,1753040748433,-309.0,0.000175,2]
[373556261,1753040748454,-1002.97052013,0.0001791,2]
[373556262,1753040838083,-317.764615,0.00017412,2]
[373556263,1753040838105,-308.0,0.000175,2]
[373556264,1753040838130,-150.0,0.0001785,2]
[373556265,1753040838151,-303.20284396,0.00017946,2]
[373556266,1753040838172,-164.16,0.00018001,2]
[373556267,1753040838192,-152.77348165,0.00018041,2]
[373556268,1753040838213,-635.16287287,0.00018108,2]
[373556269,1753040848130,-30.83712713,0.00018108,2]
[373556270,1753040848153,-192.24,0.00018138,2]
[373556271,1753040848175,-178.06,0.00018141,2]
[373556272,1753040848196,-287.85,0.00018196,2]
[373556273,1753040848218,-1200.0,0.00018217,2]
[373556274,1753040848241,-300.0,0.00018217,2]
[373556275,1753040848266,-300.0,0.00018217,2]
[373556276,1753040848288,-1798.63669619,0.00018218,2]
[373556291,1753041032353,-1137.74660433,0.00018217,2]
[373556292,1753041032368,-62.25339567,0.00018217,2]
[373556293,1753041032378,-5344.21930381,0.00018218,2]
[373556294,1753041032387,-231.28369723,0.00018218,2]
[373556295,1753041032396,-211.4,0.00018329,2]
[373556296,1753041032406,-150.0,0.00018444,2]
[373556297,1753041032416,-150.0,0.00018506,2]
[373556298,1753041032425,-164.72,0.00018578,2]
[373556299,1753041032434,-150.0,0.00018592,2]
[373556300,1753041032444,-150.0,0.00018685,2]
[373556301,1753041032453,-150.0,0.00018734,2]
[373556302,1753041032462,-168.62,0.00018756,2]
[373556303,1753041032471,-1724.361559,0.00018766,2]
[373556304,1753041032481,-150.0,0.00018768,2]
[373556305,1753041032490,-302.0,0.0001878,2]
[373556306,1753041032500,-458.49,0.000188,2]
[373556307,1753041032509,-357.46,0.000188,2]
[373556308,1753041032518,-150.0,0.00018814,2]
[373556309,1753041032527,-168.0,0.00018834,2]
[373556310,1753041032537,-289.25,0.00018855,2]
[373556311,1753041032546,-266.5191562,0.0001887,2]
[373556312,1753041032557,-150.0,0.00018878,2]
[373556313,1753041032566,-150.0,0.00018888,2]
[373556314,1753041032576,-150.0,0.00018888,2]
[373556315,1753041032586,-150.0,0.00018888,2]
[373556316,1753041032596,-150.0,0.00018888,2]
[373556317,1753041032605,-150.0,0.00018888,2]
[373556318,1753041032615,-150.0,0.00018895,2]
[373556319,1753041032624,-200.0,0.00018901,2]
[373556320,1753041032633,-200.0,0.00018903,2]
[373556321,1753041032643,-200.0,0.00018924,2]
[373556322,1753041032652,-200.0,0.00018969,2]
[373556323,1753041032662,-552.71,0.00018977,2]
[373556324,1753041032671,-210.86573235,0.00018978,2]
[373556325,1753041032680,-476.8747822,0.00018978,2]
[373556326,1753041032690,-839.31074571,0.00018978,2]
[373556327,1753041032699,-160.0,0.00018978,2]
[373556328,1753041032709,-200.0,0.00018983,2]
[373556329,1753041032719,-200.0,0.00018986,2]
[373556330,1753041032728,-211.4,0.00019016,2]
[373556331,1753041032737,-213.96859442,0.00019056,2]
[373556332,1753041032747,-500.0,0.00019056,2]
[373556333,1753041032756,-155.05103952,0.00019056,2]
[373556334,1753041032765,-500.0,0.00019056,2]
[373556335,1753041032774,-151.0,0.00019056,2]
[373556336,1753041032784,-500.0,0.00019056,2]
[373556337,1753041032793,-151.0,0.00019056,2]
[373556339,1753041032803,-500.0,0.00019056,2]